bitfinex/quotes_ETHUSD_20251012
["timestamp","ask_amount","ask_price","bid_price","bid_amount"]
[1760275619213,0.6336,3815.4,3814.3,0.4509]
[1760275619426,0.81139573,3815.4,3814.3,0.4509]
[1760275619723,0.6336,3814.5,3813.8,0.4529]
[1760275619898,2.6216659,3814.4,3813.8,0.4529]
[1760275620098,0.6336,3814.5,3813.8,0.4529]
[1760275620099,2.62189806,3814.1,3813.8,0.4529]
[1760275620509,0.6336,3814.2,3813.8,0.4529]
[1760275620848,2.62186199,3814.1,3813.8,0.4529]
[1760275621042,2.62192758,3814.0,3813.8,0.002]
[1760275621531,0.6336,3814.3,3813.8,0.002]
[1760275621532,3.25558799,3813.9,3813.8,0.002]
[1760275622297,0.6336,3813.9,3813.8,0.002]
[1760275623437,2.62135689,3814.9,3813.8,0.4529]
[1760275623632,0.26213569,3814.9,3813.8,3.07494146]
[1760275623798,2.62152422,3814.6,3813.9,2.62198444]
[1760275624008,3.25503622,3814.8,3814.0,2.62190529]
[1760275624210,3.25503622,3814.8,3814.1,0.6698]
[1760275624211,0.6336,3814.8,3814.1,0.6698]
[1760275624438,2.62083805,3815.6,3814.2,0.4509]
[1760275624739,0.2825,3815.7,3814.5,2.62152308]
[1760275625042,2.62108033,3815.3,3814.5,2.62152308]
[1760275625261,2.62097371,3815.4,3814.1,0.2189]
[1760275625538,2.62097371,3815.4,3814.7,2.62140021]
[1760275625740,2.62097371,3815.4,3814.0,1.92]
[1760275625741,2.62081979,3815.6,3813.3,0.4509]
[1760275625945,2.62081979,3815.6,3811.8,3.54142993]
[1760275625946,2.62176031,3814.3,3813.4,4.99517346]
[1760275626109,3.25542257,3814.2,3813.4,0.4529]
[1760275626441,0.6336,3814.7,3813.4,0.002]
[1760275626741,3.25558799,3813.9,3813.4,0.002]
[1760275628866,3.85323184,3813.9,3813.4,0.002]
[1760275629012,3.25586301,3813.5,3813.4,1e-08]
[1760275629214,5.17586301,3813.5,3813.4,1e-08]
[1760275629419,5.27536301,3813.5,3813.4,1e-08]
[1760275629840,3.25600054,3813.3,3813.2,0.00100001]
[1760275630152,6.1577769,3813.3,3813.2,0.00100001]
[1760275630358,6.2562769,3813.3,3813.2,0.00100001]
[1760275630649,6.2562769,3813.3,3808.1,0.12979258]
[1760275630650,1.92,3811.7,3808.1,0.12979258]
[1760275630860,3.49203803,3813.2,3808.2,0.6698]
[1760275630861,3.25723898,3811.5,3808.2,0.6698]
[1760275631018,0.6336,3811.3,3808.3,0.4509]
[1760275631221,0.6336,3811.3,3808.6,1.92]
[1760275631222,2.7231455,3811.2,3808.6,1.92]
[1760275631549,1.06607472,3812.3,3808.7,0.4509]
[1760275631750,2.62364956,3811.5,3809.0,2.5536]
[1760275632077,0.2775,3812.9,3811.4,0.2189]
[1760275632374,0.2775,3812.9,3809.9,2.624678]
[1760275632375,0.0998,3813.2,3811.5,0.4509]
[1760275632577,2.62234042,3813.4,3811.5,0.4509]
[1760275632578,0.1778,3813.3,3811.5,0.4509]
[1760275632902,2.62302858,3812.4,3811.5,0.4509]
[1760275633041,2.62310933,3812.3,3811.6,0.30746576]
[1760275633243,0.6336,3813.2,3811.5,0.4509]
[1760275633444,2.62281322,3812.7,3811.5,0.4509]
[1760275633671,2.62301238,3812.5,3811.5,0.4509]
[1760275633875,2.62288202,3812.6,3811.2,0.4509]
[1760275634041,2.62325307,3812.1,3811.2,0.4509]
[1760275634241,0.53462952,3812.5,3811.2,0.4509]
[1760275634242,2.62313046,3812.3,3811.2,3.07471313]
[1760275634473,0.41128919,3812.3,3811.3,0.4509]
[1760275634677,0.41128919,3812.3,3811.5,2.62362555]
[1760275634875,0.41128919,3812.3,3810.9,0.2189]
[1760275634876,0.2766,3813.7,3812.2,0.2189]
[1760275635040,2.62205674,3813.8,3812.4,2.62301962]
[1760275635239,0.4112006,3814.1,3812.5,0.4509]
[1760275635544,2.62272112,3812.9,3812.5,0.4509]
[1760275635882,2.62278219,3812.8,3812.2,0.2189]
[1760275636245,2.62226301,3813.5,3812.3,0.4509]
[1760275636442,0.1006,3813.7,3812.3,0.4509]
[1760275636443,0.2722863,3813.4,3812.3,0.4509]
[1760275636680,2.62256808,3813.1,3812.3,0.4509]
[1760275636846,2.62263152,3813.0,3812.3,0.4509]
[1760275637173,2.62171302,3814.3,3812.3,3.07397856]
[1760275637376,0.2898813,3814.2,3812.5,2.62295081]
[1760275637574,0.70103737,3814.2,3812.6,0.471]
[1760275637785,2.62205937,3813.8,3812.8,2.62268099]
[1760275637980,2.62205937,3813.8,3812.9,3.09367224]
[1760275638482,0.41115607,3814.2,3813.0,0.471]
[1760275638667,2.62164827,3814.4,3813.5,2.62222055]
[1760275638978,0.1304,3813.7,3813.6,0.471]
[1760275639190,0.1304,3813.7,3813.6,0.78033025]
[1760275639692,0.1304,3813.7,3813.6,0.471]
[1760275639869,0.0998,3815.0,3813.1,0.471]
[1760275639870,2.62221833,3813.6,3813.1,0.471]
[1760275640191,2.62241103,3813.3,3813.1,0.471]
[1760275640560,2.62241103,3813.3,3812.2,2.84205534]
[1760275640561,0.2503,3813.9,3812.4,0.471]
[1760275640888,2.62286706,3812.7,3812.2,0.2189]
[1760275641088,0.6336,3813.3,3812.0,0.471]
[1760275641289,2.62321408,3812.2,3812.0,0.471]
[1760275641690,2.62322604,3812.1,3811.6,0.471]
[1760275641905,2.62316479,3812.2,3811.7,0.471]
[1760275642071,0.099,3813.1,3811.7,0.471]
[1760275642392,0.6336,3813.5,3811.7,0.471]
[1760275642693,2.62328146,3812.1,3811.3,0.471]
[1760275643192,2.62328146,3812.1,3811.3,3.09475783]
[1760275643395,2.62330799,3812.0,3811.3,0.471]
[1760275643598,2.62330799,3812.0,3811.4,0.30948429]
[1760275644209,0.6336,3813.1,3811.4,0.30948429]
[1760275644210,0.6336,3812.9,3811.4,0.30948429]
[1760275644489,2.62369969,3811.5,3810.9,0.2189]
[1760275644657,0.6336,3812.2,3810.9,0.2189]
[1760275644871,2.62388592,3811.2,3810.4,0.471]
[1760275645065,2.62372723,3811.4,3810.5,2.62429543]
[1760275645368,0.6336,3813.0,3810.7,2.62418978]
[1760275645573,2.62323476,3812.1,3811.2,2.62379565]
[1760275645764,2.62323011,3812.1,3811.3,3.0947598]
[1760275645966,0.41134251,3813.1,3811.4,0.471]
[1760275646175,2.72100062,3813.9,3811.4,2.391]
[1760275646376,2.6213847,3814.8,3811.4,2.391]
[1760275646377,0.41119225,3814.1,3811.5,0.97247608]
[1760275646577,2.62214556,3813.7,3812.8,2.62267917]
[1760275646781,2.62176771,3814.3,3812.9,0.6967]
[1760275647002,2.62102586,3815.3,3813.0,0.471]
[1760275647163,0.2773,3815.4,3813.0,0.471]
[1760275647164,2.62185571,3814.1,3813.0,0.471]
[1760275647363,2.0195,3815.1,3813.2,2.62245631]
[1760275647675,2.62172702,3814.3,3813.3,3.09336973]
[1760275647889,2.62192292,3814.0,3813.3,3.09336973]
[1760275648067,2.62176703,3814.3,3813.4,3.09332473]
[1760275648262,2.6213694,3814.8,3813.5,0.471]
[1760275648469,0.41104489,3814.9,3813.5,0.471]
[1760275648470,3.03235872,3814.9,3813.5,0.471]
[1760275648670,2.62201378,3813.9,3813.5,0.471]
[1760275648975,0.55159182,3814.8,3813.6,0.471]
[1760275649196,0.41104489,3814.9,3813.6,0.471]
[1760275649369,0.78945388,3817.1,3814.7,0.2257]
[1760275649370,0.1003,3816.4,3814.7,0.2257]
[1760275649710,0.41197389,3816.2,3814.8,2.62134808]
[1760275650002,0.001,3816.2,3815.3,2.62097319]
[1760275650175,0.001,3816.2,3814.9,2.62130068]
[1760275650176,0.1304,3815.4,3814.9,3.09228184]
[1760275650363,0.1304,3815.4,3815.3,2.62102586]
[1760275650699,0.1304,3815.4,3815.3,3.09202586]
[1760275651004,0.1304,3815.4,3815.3,0.471]
[1760275651488,0.1304,3815.4,3815.3,3.09202586]
[1760275651685,0.1304,3815.4,3815.3,0.471]
[1760275652311,2.62116902,3815.1,3814.7,0.6967]
[1760275652479,0.1304,3814.9,3814.8,0.471]
[1760275652963,2.75170812,3814.9,3814.1,0.471]
[1760275653164,0.1304,3814.7,3814.3,0.2257]
[1760275653478,2.62138045,3814.8,3814.4,0.471]
[1760275653803,2.62138045,3814.8,3814.5,0.471]
[1760275653978,2.62131886,3814.9,3814.5,0.471]
[1760275654197,2.62131886,3814.9,3813.7,0.1304]
[1760275654198,2.62190532,3814.1,3813.7,0.1304]
[1760275654392,0.6336,3814.8,3813.6,0.471]
[1760275654592,0.6336,3814.8,3812.0,0.2257]
[1760275654932,0.51446622,3815.0,3812.0,0.2257]
[1760275654933,2.62233614,3813.4,3813.0,0.471]
[1760275655089,2.62253364,3813.2,3813.0,0.471]
[1760275655617,2.62218257,3813.7,3813.0,0.471]
[1760275655824,0.1034,3814.7,3813.0,0.471]
[1760275656024,0.41106224,3815.1,3813.0,0.471]
[1760275656322,0.1818,3815.9,3813.1,0.33194297]
[1760275656620,0.41097243,3815.6,3814.2,2.62171864]
[1760275656823,2.62125788,3815.0,3814.3,0.471]
[1760275657010,2.62130743,3814.9,3814.3,0.471]
[1760275657190,2.62139211,3814.8,3814.3,0.471]
[1760275657589,2.62155846,3814.6,3813.8,0.471]
[1760275657907,2.62144405,3814.7,3813.9,2.62196969]
[1760275658108,2.62131758,3814.9,3814.1,2.62178638]
[1760275658315,2.62131758,3814.9,3814.2,3.09277653]
[1760275658492,2.62138475,3814.8,3814.2,0.471]
[1760275658994,2.62118539,3815.1,3814.2,0.471]
[1760275659324,2.62130068,3814.9,3814.2,3.09276644]
[1760275659523,2.62148695,3814.7,3814.2,0.471]
[1760275659822,2.62159307,3814.5,3813.8,2.62203243]
[1760275660193,0.41095434,3815.4,3813.9,0.471]
[1760275660392,2.62135556,3814.9,3814.1,2.62178207]
[1760275660598,0.41095434,3815.4,3814.2,0.471]
[1760275660804,2.62102586,3815.3,3814.4,2.62157806]
[1760275661011,2.6207511,3815.7,3814.5,3.09257554]
[1760275661205,0.001,3815.8,3814.6,0.471]
[1760275661617,0.001,3815.8,3815.5,2.62087953]
[1760275662026,0.001,3815.8,3815.6,0.471]
[1760275662523,0.001,3815.8,3815.7,0.471]
[1760275664330,2.62142007,3816.2,3815.7,0.471]
[1760275664331,0.001,3816.2,3816.1,2.6204764]
[1760275664531,0.001,3816.2,3816.1,5.2489764]
[1760275664854,0.001,3816.6,3816.5,2.62020175]
[1760275665145,0.001,3817.1,3816.5,0.84644908]
[1760275665317,0.001,3817.1,3816.5,2.62019082]
[1760275665519,0.001,3817.1,3816.6,0.4718]
[1760275666028,0.001,3817.1,3816.7,0.4718]
[1760275666234,0.001,3817.1,3816.7,3.09186045]
[1760275666449,0.001,3817.1,3816.8,0.4718]
[1760275666941,0.001,3817.1,3816.7,2.62005421]
[1760275666942,0.001,3817.1,3817.0,2.61985852]
[1760275667347,0.001,3817.1,3817.0,3.06935852]
[1760275668142,0.001,3817.1,3817.0,0.4495]
[1760275669047,0.001,3817.1,3817.0,3.06935852]
[1760275669243,0.001,3817.1,3817.0,3.63830458]
[1760275669755,0.001,3817.1,3817.0,5.55830458]
[1760275670673,0.001,3817.1,3817.0,0.4495]
[1760275670985,2.61991837,3817.0,3816.4,0.4495]
[1760275671464,2.61993412,3816.9,3816.4,0.4495]
[1760275671764,0.001,3817.1,3816.5,0.4495]
[1760275672742,0.001,3817.1,3816.5,3.0696948]
[1760275673144,2.61987118,3817.0,3816.5,0.4495]
[1760275673445,0.001,3817.1,3816.6,0.4495]
[1760275673640,2.61985852,3817.0,3816.6,0.4495]
[1760275673846,0.001,3817.1,3816.7,0.4495]
[1760275674345,0.001,3817.1,3816.8,3.06949485]
[1760275674541,0.001,3817.1,3816.8,0.4495]
[1760275674772,0.001,3817.1,3816.9,0.4495]
[1760275674976,0.001,3817.1,3816.7,0.4495]
[1760275675486,2.62079504,3817.1,3816.7,0.4495]
[1760275675673,0.1304,3816.7,3816.1,0.6862]
[1760275675985,0.1304,3816.4,3816.2,1.92]
[1760275676182,0.1304,3816.4,3816.3,3.59250422]
[1760275676555,0.001,3817.1,3815.8,0.4495]
[1760275676752,2.62014893,3816.6,3815.8,0.4495]
[1760275677187,2.62032559,3816.4,3815.8,0.4495]
[1760275677880,2.62035756,3816.3,3815.8,0.4495]
[1760275678076,2.62084462,3817.1,3815.8,0.4495]
[1760275678077,2.62079456,3817.1,3815.8,0.4495]
[1760275678387,2.62043492,3816.2,3815.4,0.4495]
[1760275678557,2.62067575,3815.9,3815.4,0.4495]
[1760275678752,2.62050702,3816.1,3815.5,0.4495]
[1760275678753,2.62049412,3816.1,3815.5,0.4495]
[1760275679365,2.62042569,3816.2,3815.5,3.07038519]
[1760275679557,2.620497,3816.1,3815.6,0.4495]
[1760275679761,2.62054533,3816.0,3815.7,0.4495]
[1760275679963,2.62049956,3816.1,3815.7,0.4495]
[1760275680489,2.62049956,3816.1,3815.8,0.4495]
[1760275680692,2.62033987,3816.3,3815.9,0.4495]
[1760275680999,2.62050506,3816.1,3815.9,0.4495]
[1760275681357,3.2537331,3816.6,3815.4,0.49952687]
[1760275681594,2.62065848,3815.9,3815.4,0.49952687]
[1760275681889,0.6336,3815.9,3814.7,0.4495]
[1760275682053,2.6212396,3815.0,3814.7,0.4495]
[1760275682258,0.6336,3815.5,3814.1,0.4495]
[1760275682487,0.6336,3815.5,3814.1,3.07132856]
[1760275682488,2.62137505,3814.8,3814.1,3.07132856]
[1760275682752,2.62049614,3816.1,3814.6,2.62144685]
[1760275682987,0.099,3816.6,3815.4,0.002]
[1760275682988,0.6336,3816.6,3815.4,0.002]
[1760275683189,2.62063123,3815.9,3815.5,0.4495]
[1760275683355,2.62083809,3817.1,3815.6,0.4495]
[1760275683356,0.001,3817.1,3815.6,0.4495]
[1760275683553,0.6336,3816.7,3815.4,0.002]
[1760275683756,0.099,3816.8,3815.4,0.002]
[1760275683757,2.62016576,3816.6,3815.4,0.002]
[1760275683984,0.6336,3816.4,3815.4,0.4515]
[1760275684184,2.62061884,3815.9,3815.4,0.4515]
[1760275684365,2.62056922,3816.0,3815.4,0.002]
[1760275684560,0.6336,3816.6,3815.4,0.002]
[1760275684762,2.62088848,3815.5,3815.4,0.002]
[1760275685501,3.25448848,3815.5,3815.4,0.002]
[1760275685860,5.17448848,3815.5,3815.4,0.002]
[1760275686580,5.95401412,3815.5,3815.4,0.002]
[1760275687172,6.05391412,3815.5,3815.4,0.002]
[1760275687921,5.95401412,3815.5,3815.4,0.002]
[1760275688403,6.05391412,3815.5,3815.4,0.002]
[1760275689711,5.17448848,3815.5,3815.4,0.002]
[1760275690589,4.54088848,3815.5,3815.4,0.002]
[1760275691427,2.61985852,3817.0,3815.4,0.4515]
[1760275691592,2.61992716,3816.9,3815.4,0.4515]
[1760275691784,0.1304,3815.8,3815.4,0.4515]
[1760275692133,2.61991292,3817.0,3815.9,2.62061374]
[1760275692313,0.001,3817.1,3816.0,0.4495]
[1760275692488,0.1304,3816.6,3816.3,2.62032418]
[1760275692687,0.1304,3816.6,3816.5,0.2269]
[1760275693091,0.1304,3816.6,3816.5,0.6764]
[1760275693401,0.1304,3816.6,3816.5,3.88830767]
[1760275693598,0.1304,3816.6,3816.5,1.26810592]
[1760275693911,0.1304,3816.6,3816.5,0.6764]
[1760275697825,2.62040773,3816.2,3816.1,0.2176]
[1760275698134,2.0504,3816.1,3815.5,2.62088398]
[1760275698428,1.92,3816.2,3815.4,0.002]
[1760275698640,0.6336,3817.0,3815.5,0.4463]
[1760275698641,0.1304,3815.6,3815.5,0.4463]
[1760275698807,0.1304,3815.6,3815.4,0.002]
[1760275698808,4.54088848,3815.5,3815.4,0.002]
[1760275698999,1.92,3815.5,3815.4,0.002]
[1760275699205,1.92,3816.5,3815.6,2.62081877]
[1760275699530,0.2545653,3817.0,3815.7,0.4463]
[1760275699531,1.92,3816.2,3815.7,0.4463]
[1760275699836,1.92,3816.0,3815.8,0.4463]
[1760275700009,2.62055642,3816.0,3815.8,0.4463]
[1760275700209,1.92,3816.1,3815.4,0.4483]
[1760275700414,4.54088848,3815.5,3815.4,0.002]
[1760275701827,1.92,3815.5,3815.4,0.002]
[1760275702026,1.92,3815.5,3815.4,0.4483]
[1760275703838,1.92,3816.1,3815.4,3.06918961]
[1760275704038,2.62034597,3816.3,3815.6,2.62077306]
[1760275704254,0.001,3816.7,3815.6,0.56900797]
[1760275704543,2.62036815,3816.3,3815.7,0.4463]
[1760275704906,2.6201331,3816.6,3815.7,0.4463]
[1760275705106,0.001,3816.7,3815.4,0.002]
[1760275705355,2.62062458,3815.9,3815.5,0.4463]
[1760275705555,2.62062458,3815.9,3815.6,0.4463]
[1760275705856,2.62062458,3815.9,3815.7,0.4463]
[1760275706358,2.62068242,3815.8,3815.7,0.4463]
[1760275706527,4.54088848,3815.5,3815.4,0.002]
[1760275706839,1.92,3815.5,3815.4,0.002]
[1760275707410,1.92,3815.5,3815.4,0.4483]
[1760275707648,4.54069305,3815.8,3815.4,0.4483]
[1760275707810,4.54069305,3815.8,3815.5,0.4463]
[1760275708017,4.54069305,3815.8,3815.6,0.4463]
[1760275708217,4.54069305,3815.8,3815.7,0.4463]
[1760275708934,1.92,3815.8,3815.7,0.4463]
[1760275709245,0.1304,3815.8,3815.7,0.4463]
[1760275709420,0.1304,3815.8,3815.7,3.0670511]
[1760275709631,0.1304,3815.8,3815.7,3.63604535]
[1760275710950,0.001,3816.7,3816.0,2.62053448]
[1760275711154,0.001,3816.7,3816.6,0.2176]
[1760275711528,0.001,3816.7,3816.6,0.6639]
[1760275712454,2.75054004,3816.6,3816.1,0.2176]
[1760275712635,2.62014004,3816.6,3816.2,0.4463]
[1760275712835,0.1304,3816.2,3816.1,0.54604599]
[1760275713428,0.001,3816.7,3816.1,0.99234599]
[1760275713623,0.1304,3816.2,3816.1,0.6639]
[1760275713826,0.1304,3816.2,3816.1,3.2843764]
[1760275714229,0.001,3816.7,3816.1,0.6639]
[1760275714429,0.1314,3816.7,3816.3,2.62033907]
[1760275714636,0.001,3816.7,3816.6,2.6201331]
[1760275715123,0.001,3816.7,3816.6,3.0664331]
[1760275719773,0.001,3816.7,3816.6,5.6200331]
[1760275721858,0.001,3816.7,3816.6,3.0664331]
[1760275722740,0.001,3816.7,3816.6,3.7000331]
[1760275723032,0.001,3816.7,3816.6,4.36490529]
[1760275723858,1e-08,3817.1,3817.0,5.17345852]
[1760275724229,1e-08,3817.1,3817.0,3.05665852]
[1760275724756,1e-08,3817.1,3817.0,3.69025852]
[1760275724961,1e-08,3817.1,3817.0,3.18705852]
[1760275725159,1e-08,3817.1,3817.0,3.59068701]
[1760275726589,1e-08,3817.1,3817.0,0.5672]
[1760275726778,1e-08,3817.1,3817.0,3.05665852]
[1760275726988,1e-08,3817.1,3817.0,0.4368]
[1760275727294,1e-08,3817.1,3816.6,0.5672]
[1760275727496,2.61984096,3817.1,3816.9,0.442]
[1760275727795,0.1304,3817.0,3816.4,2.75066675]
[1760275727965,0.1304,3817.0,3816.5,2.89525745]
[1760275728365,0.1304,3817.0,3816.6,0.442]
[1760275728598,0.1304,3817.0,3816.4,0.1304]
[1760275728599,2.61997468,3816.9,3816.7,0.442]
[1760275728775,2.61997468,3816.9,3816.4,0.1304]
[1760275728978,0.1304,3817.0,3816.8,0.442]
[1760275729171,1e-08,3817.1,3816.9,0.442]
[1760275729998,1e-08,3817.1,3816.6,0.1304]
[1760275729999,1e-08,3817.1,3816.7,2.62006304]
[1760275730167,1e-08,3817.1,3817.0,0.442]
[1760275730495,2.6197899,3817.1,3817.0,0.442]
[1760275730698,4.5397899,3817.1,3817.0,0.442]
[1760275730995,1.92000001,3817.1,3817.0,0.442]
[1760275731196,1e-08,3817.1,3817.0,0.442]
[1760275731703,0.13040001,3817.1,3817.0,0.442]
[1760275731894,1e-08,3817.1,3817.0,3.36806017]
[1760275734972,1e-08,3817.1,3817.0,3.37006017]
[1760275735473,1e-08,3817.1,3817.0,0.444]
[1760275736399,2.6197899,3817.1,3817.0,0.444]
[1760275736604,1e-08,3817.1,3817.0,0.444]
[1760275740517,1e-08,3817.1,3817.0,3.06385852]
[1760275742724,1e-08,3817.1,3817.0,3.19425852]
[1760275742923,1e-08,3817.1,3817.0,3.77568254]
[1760275747635,1e-08,3817.1,3817.0,6.32928254]
[1760275751333,0.001,3817.9,3817.0,6.32928254]
[1760275751334,2.61616555,3822.4,3819.4,2.61821228]
[1760275751533,0.1304,3820.6,3819.4,0.1304]
[1760275751841,2.61772862,3820.2,3819.5,0.442]
[1760275752048,0.1304,3820.0,3819.5,0.442]
[1760275752208,0.1304,3820.0,3819.6,0.442]
[1760275752416,0.1304,3820.0,3819.8,2.61787312]
[1760275752616,0.1304,3820.0,3819.9,0.442]
[1760275753020,0.3299,3821.9,3820.0,2.61775377]
[1760275753320,0.13169038,3822.4,3820.1,3.59888532]
[1760275753321,2.61667183,3821.7,3820.1,3.59888532]
[1760275753521,2.61667183,3821.7,3820.2,0.442]
[1760275753725,0.1839,3822.8,3820.2,0.442]
[1760275753923,2.61663497,3821.8,3820.9,2.61712775]
[1760275754128,2.61645714,3822.0,3821.1,2.61703699]
[1760275754129,2.61645945,3822.0,3821.1,2.61703699]
[1760275754448,0.52327576,3821.9,3821.2,3.05897713]
[1760275754649,0.1839,3822.8,3820.1,0.2332]
[1760275754650,0.1046,3823.5,3821.3,0.442]
[1760275754820,0.1046,3823.5,3821.7,2.61659398]
[1760275754821,2.61560908,3823.3,3821.7,2.61659398]
[1760275755141,2.61560908,3823.3,3821.7,0.442]
[1760275755142,2.61622984,3822.3,3821.7,0.442]
[1760275755446,0.52323338,3822.2,3821.7,0.442]
[1760275755746,2.61649357,3823.4,3821.7,3.05861788]
[1760275755944,0.001,3823.4,3821.8,3.05855511]
[1760275756132,0.001,3823.4,3821.9,0.442]
[1760275756133,2.61600631,3822.7,3821.9,0.442]
[1760275756312,0.001,3823.4,3822.0,2.61641717]
[1760275756510,2.61594106,3822.8,3822.0,2.61641717]
[1760275756710,2.87753517,3822.8,3822.1,0.442]
[1760275756916,0.001,3823.4,3822.1,0.442]
[1760275757326,2.61652763,3823.4,3822.5,2.61608514]
[1760275757524,0.001,3823.4,3822.6,0.45]
[1760275757737,2.6157014,3823.1,3822.6,0.45]
[1760275758051,0.001,3823.4,3822.2,0.45]
[1760275758052,2.61609429,3822.5,3822.2,0.45]
[1760275758227,2.61609429,3822.5,3821.6,1.92]
[1760275758546,2.6160304,3822.6,3822.3,0.45]
[1760275758740,2.61596222,3822.7,3821.8,2.61654925]
[1760275759043,2.61596222,3822.7,3822.4,0.45]
[1760275759214,3.13923986,3822.6,3821.8,2.61654925]
[1760275759414,3.13923986,3822.6,3822.5,0.45]
[1760275759610,0.52318343,3822.6,3822.5,0.45]
[1760275759857,2.61600031,3822.7,3822.5,0.45]
[1760275760061,0.001,3823.4,3822.6,0.45]
[1760275760217,2.61594861,3822.8,3822.6,0.45]
[1760275760417,0.001,3823.4,3821.6,1.92]
[1760275760725,2.61603769,3822.6,3821.8,2.61654853]
[1760275760924,2.61603769,3822.6,3821.9,0.45]
[1760275761121,0.6336,3823.2,3821.9,0.45]
[1760275761326,2.61640506,3822.1,3821.5,0.45]
[1760275761628,0.6336,3822.8,3821.5,0.45]
[1760275761839,2.61670039,3821.7,3821.5,0.45]
[1760275762041,0.6336,3822.6,3820.7,0.45]
[1760275762247,2.6171218,3821.0,3820.6,0.45]
[1760275762549,2.6171218,3821.0,3820.1,0.2332]
[1760275762550,2.61707534,3821.1,3820.3,0.45]
[1760275762740,0.7367,3821.8,3820.3,0.45]
[1760275762741,2.61729786,3820.8,3820.3,0.45]
[1760275762941,2.61724111,3820.9,3820.4,0.45]
[1760275763119,2.61724111,3820.9,3820.5,0.45]
[1760275763323,0.1304,3820.6,3820.2,2.61766399]
[1760275763655,0.1304,3820.6,3820.1,0.2332]
[1760275763854,0.1304,3820.6,3820.2,1.92]
[1760275764043,0.1304,3820.6,3820.3,0.45]
[1760275764357,0.1304,3820.6,3820.4,0.45]
[1760275764557,0.1304,3820.6,3820.1,0.2332]
[1760275764728,2.7477991,3820.6,3820.3,0.45]
[1760275764922,2.7477991,3820.6,3820.1,0.2332]
[1760275764923,2.7477991,3820.6,3820.4,0.45]
[1760275765124,0.53650453,3820.6,3819.7,0.45]
[1760275765324,0.1304,3820.0,3819.7,0.45]
[1760275765555,0.1304,3820.0,3819.6,1.92]
[1760275765855,0.1304,3820.0,3819.8,0.45]
[1760275766356,0.1304,3820.0,3819.9,0.45]
[1760275771071,0.1304,3820.3,3819.9,0.45]
[1760275771280,0.1304,3820.6,3820.2,0.235]
[1760275771568,0.1304,3821.1,3820.6,2.61738144]
[1760275771755,0.1304,3821.1,3820.7,0.45]
[1760275772266,0.1304,3821.1,3820.8,0.45]
[1760275772267,2.61707669,3821.1,3820.8,0.45]
[1760275772470,0.1304,3820.8,3820.7,2.61732143]
[1760275772759,0.1304,3821.1,3820.6,2.61736631]
[1760275773146,0.1304,3821.1,3820.7,0.45]
[1760275773324,0.1304,3821.1,3820.3,2.61753321]
[1760275773325,2.61714374,3821.0,3820.8,0.45]
[1760275773525,2.90815734,3820.9,3820.2,2.85264577]
[1760275773727,0.6336,3821.5,3820.2,0.235]
[1760275773955,2.61751208,3820.5,3820.2,0.235]
[1760275774156,4.53759547,3820.3,3820.2,0.45]
[1760275774356,2.61777768,3820.1,3819.7,0.45]
[1760275774560,0.7367,3820.8,3819.5,0.002]
[1760275774759,4.53807519,3819.6,3819.5,0.002]
[1760275775428,1.92,3819.6,3819.5,3.07014373]
[1760275776246,0.1031,3821.4,3819.5,1.0208411]
[1760275776465,2.5536,3820.7,3819.5,0.002]
[1760275776773,0.1031,3821.4,3819.6,0.45]
[1760275776774,0.6336,3820.9,3819.6,0.45]
[1760275776946,0.6336,3820.9,3820.1,2.61767983]
[1760275777135,0.6336,3820.7,3820.1,2.61767983]
[1760275777461,0.6336,3820.7,3820.0,0.45]
[1760275777462,0.6336,3820.7,3820.0,3.06779057]
[1760275777636,0.6336,3820.7,3819.5,0.002]
[1760275777637,0.6336,3820.2,3819.5,0.002]
[1760275777837,0.6336,3820.4,3819.7,2.61799678]
[1760275778087,0.6336,3820.4,3819.8,0.45]
[1760275778359,0.6336,3820.6,3819.9,2.61784321]
[1760275778564,0.51351195,3821.3,3819.5,0.002]
[1760275778565,0.6336,3820.8,3820.0,0.45]
[1760275778736,0.25536,3820.7,3820.1,2.85272339]
[1760275778934,0.6336,3821.1,3820.3,2.61754569]
[1760275779260,0.6336,3821.1,3820.3,2.61753325]
[1760275779760,0.6336,3821.1,3820.4,2.61752575]
[1760275780366,2.5536,3821.0,3820.3,2.61759211]
[1760275780662,3.13425981,3820.9,3820.2,0.45]
[1760275780866,0.6336,3820.4,3819.5,0.452]
[1760275781161,0.6336,3820.4,3819.8,2.61788038]
[1760275781371,2.5536,3820.5,3819.8,2.61788038]
[1760275781567,0.5171034,3820.4,3819.8,2.61788038]
[1760275782005,0.5171034,3820.4,3819.9,0.45]
[1760275782187,2.61620057,3822.4,3819.5,0.002]
[1760275782188,1.92,3820.6,3819.5,0.002]
[1760275782359,1.92,3820.1,3819.5,0.002]
[1760275782563,1.92,3820.2,3819.5,0.002]
[1760275782764,1.92,3820.5,3819.8,2.61792208]
[1760275783067,0.45374386,3820.4,3819.9,0.4558]
[1760275783370,0.1304,3820.2,3820.0,0.4558]
[1760275783679,0.1304,3820.2,3819.5,0.1324]
[1760275783884,0.1304,3820.0,3819.5,2.62009388]
[1760275784083,0.1304,3820.0,3819.6,0.4558]
[1760275784461,2.5536,3820.2,3819.5,0.002]
[1760275784663,2.5536,3820.2,3819.6,0.4558]
[1760275784664,0.1304,3819.7,3819.6,0.4558]
[1760275785205,0.1304,3820.0,3819.6,0.4558]
[1760275785366,0.1304,3820.0,3819.7,0.4558]
[1760275788176,0.1304,3820.0,3819.5,0.002]
[1760275788375,5.17167519,3819.6,3819.5,0.002]
[1760275788588,0.099,3821.7,3819.5,0.002]
[1760275788789,0.1304,3820.5,3819.5,0.1324]
[1760275788990,0.1304,3820.8,3820.5,2.61743996]